[Event "Live Chess"]
[Site "Chess.com"]
[Date "2024.06.01"]
[Round "-"]
[White "Kirill-2008"]
[Black "DoctorMantisTobogganMD"]
[Result "1-0"]
[WhiteElo "2421"]
[BlackElo "2193"]
[TimeControl "300"]
[EndTime "11:57:24 PDT"]
[Termination "Kirill-2008 won on time"]

1. e4 {[%clk 0:04:41.3]} 1... c6 {[%clk 0:04:57.2]} 2. d4 {[%clk 0:04:39.6]}
2... g6 {[%clk 0:04:56]} 3. e5 {[%clk 0:04:39]} 3... d5 {[%clk 0:04:55]} 4. exd6
{[%clk 0:04:35.8]} 4... Qxd6 {[%clk 0:04:53.7]} 5. Nf3 {[%clk 0:04:30.2]} 5...
Bg4 {[%clk 0:04:51.7]} 6. c4 {[%clk 0:04:30.1]} 6... Bxf3 {[%clk 0:04:49.7]} 7.
Qxf3 {[%clk 0:04:29.6]} 7... Qxd4 {[%clk 0:04:48.3]} 8. Nc3 {[%clk 0:04:28.9]}
8... Bg7 {[%clk 0:04:43.4]} 9. Be3 {[%clk 0:04:26.8]} 9... Qe5 {[%clk
0:04:32.8]} 10. O-O-O {[%clk 0:03:52.4]} 10... Nf6 {[%clk 0:04:25.5]} 11. Bd4
{[%clk 0:03:49]} 11... Qg5+ {[%clk 0:04:17]} 12. Kb1 {[%clk 0:03:37.8]} 12...
Qf5+ {[%clk 0:03:47.8]} 13. Qxf5 {[%clk 0:03:33.7]} 13... gxf5 {[%clk
0:03:47.7]} 14. Bd3 {[%clk 0:03:32.8]} 14... e6 {[%clk 0:03:46.7]} 15. g4 {[%clk
0:03:22.3]} 15... fxg4 {[%clk 0:03:39.8]} 16. Ne4 {[%clk 0:03:11.6]} 16... Nbd7
{[%clk 0:02:02.9]} 17. Nd6+ {[%clk 0:02:51.4]} 17... Kf8 {[%clk 0:02:00.1]} 18.
Nxb7 {[%clk 0:02:48.3]} 18... Rb8 {[%clk 0:01:59]} 19. Na5 {[%clk 0:02:46.5]}
19... c5 {[%clk 0:01:52.9]} 20. Bc3 {[%clk 0:02:45.8]} 20... Nh5 {[%clk
0:01:48.8]} 21. Bxg7+ {[%clk 0:02:20.5]} 21... Kxg7 {[%clk 0:01:48.7]} 22. Bxh7
{[%clk 0:02:20]} 22... Ne5 {[%clk 0:01:44.9]} 23. Bd3 {[%clk 0:02:16.7]} 23...
Rbd8 {[%clk 0:01:40.4]} 24. Kc2 {[%clk 0:02:08.7]} 24... Nf4 {[%clk 0:01:36.2]}
25. Be4 {[%clk 0:01:58.1]} 25... Rxd1 {[%clk 0:01:33.3]} 26. Kxd1 {[%clk
0:01:55.9]} 26... f5 {[%clk 0:01:32.9]} 27. Bc2 {[%clk 0:01:51]} 27... Kf6
{[%clk 0:01:30.5]} 28. b3 {[%clk 0:01:49]} 28... Nf3 {[%clk 0:01:25.6]} 29. Nb7
{[%clk 0:01:46.7]} 29... Rc8 {[%clk 0:01:21.6]} 30. Kc1 {[%clk 0:01:44]} 30...
Ne2+ {[%clk 0:01:16.9]} 31. Kb2 {[%clk 0:01:42.5]} 31... Ned4 {[%clk 0:01:16.8]}
32. Bb1 {[%clk 0:01:40.4]} 32... Rc7 {[%clk 0:01:15.4]} 33. Nd6 {[%clk
0:01:38.8]} 33... Ke7 {[%clk 0:01:12.6]} 34. Nb5 {[%clk 0:01:36.6]} 34... Nxb5
{[%clk 0:01:11.9]} 35. cxb5 {[%clk 0:01:36.5]} 35... Rd7 {[%clk 0:01:11]} 36.
Kc3 {[%clk 0:01:31.7]} 36... Rd2 {[%clk 0:01:08.9]} 37. h3 {[%clk 0:01:28.3]}
37... Rxf2 {[%clk 0:01:06.9]} 38. hxg4 {[%clk 0:01:27.2]} 38... fxg4 {[%clk
0:01:06.8]} 39. Be4 {[%clk 0:01:25.9]} 39... Ng5 {[%clk 0:01:02.1]} 40. Bc6
{[%clk 0:01:24.1]} 40... g3 {[%clk 0:00:56.8]} 41. Rg1 {[%clk 0:01:22.1]} 41...
g2 {[%clk 0:00:51.9]} 42. Bxg2 {[%clk 0:01:19.5]} 42... Rxa2 {[%clk 0:00:48.6]}
43. Bc6 {[%clk 0:01:16.2]} 43... Kf6 {[%clk 0:00:47.9]} 44. Kc4 {[%clk
0:01:13.3]} 44... Rc2+ {[%clk 0:00:46.1]} 45. Kd3 {[%clk 0:01:12.4]} 45... Rb2
{[%clk 0:00:43]} 46. Ra1 {[%clk 0:01:10.7]} 46... Nf7 {[%clk 0:00:39.3]} 47. Kc3
{[%clk 0:01:08.7]} 47... Rf2 {[%clk 0:00:34.5]} 48. Rxa7 {[%clk 0:01:08.1]}
48... Ne5 {[%clk 0:00:33.7]} 49. Be4 {[%clk 0:01:06]} 49... Rf4 {[%clk
0:00:32.2]} 50. Bc2 {[%clk 0:01:04.2]} 50... Rb4 {[%clk 0:00:30.9]} 51. Ra5
{[%clk 0:01:00.2]} 51... Nd7 {[%clk 0:00:28.4]} 52. Bd3 {[%clk 0:00:58.6]} 52...
Nb6 {[%clk 0:00:27.1]} 53. Bc4 {[%clk 0:00:58.2]} 53... Nd5+ {[%clk 0:00:25.9]}
54. Kb2 {[%clk 0:00:56.9]} 54... Ke5 {[%clk 0:00:24.8]} 55. Ra4 {[%clk
0:00:55.9]} 55... Rxa4 {[%clk 0:00:22.8]} 56. bxa4 {[%clk 0:00:55.8]} 56... Kd6
{[%clk 0:00:19.8]} 57. a5 {[%clk 0:00:54.5]} 57... Nc7 {[%clk 0:00:18.5]} 58. b6
{[%clk 0:00:52.9]} 58... Ne8 {[%clk 0:00:13]} 59. a6 {[%clk 0:00:43.2]} 59...
Kc6 {[%clk 0:00:12.3]} 60. a7 {[%clk 0:00:42.7]} 60... Kb7 {[%clk 0:00:10.9]}
61. Ba6+ {[%clk 0:00:42.4]} 61... Ka8 {[%clk 0:00:09.5]} 62. Bb5 {[%clk
0:00:42]} 62... Nd6 {[%clk 0:00:05]} 63. Bc6+ {[%clk 0:00:41.3]} 63... Nb7
{[%clk 0:00:04.4]} 64. Kc3 {[%clk 0:00:41]} 64... e5 {[%clk 0:00:03]} 65. Kd3
{[%clk 0:00:31.8]} 65... e4+ {[%clk 0:00:01.6]} 66. Kxe4 {[%clk 0:00:30.8]}
66... c4 {[%clk 0:00:01.5]} 67. Kd4 {[%clk 0:00:27.6]} 67... c3 {[%clk
0:00:01.4]} 68. Bxb7+ {[%clk 0:00:26]} 68... Kxb7 {[%clk 0:00:01.3]} 69. Kxc3
{[%clk 0:00:25.5]} 69... Ka8 {[%clk 0:00:01.2]} 70. Kb4 {[%clk 0:00:24.8]} 70...
Kb7 {[%clk 0:00:01.1]} 71. Kc5 {[%clk 0:00:23.9]} 71... Ka8 {[%clk 0:00:01]} 72.
Kb5 {[%clk 0:00:13.6]} 72... Kb7 {[%clk 0:00:00.9]} 73. Ka4 {[%clk 0:00:09.7]}
73... Ka8 {[%clk 0:00:00.8]} 74. Kb4 {[%clk 0:00:09.6]} 74... Kb7 {[%clk
0:00:00.7]} 75. Ka5 {[%clk 0:00:09.3]} 75... Ka8 {[%clk 0:00:00.6]} 76. Kb5
{[%clk 0:00:06.8]} 76... Kb7 {[%clk 0:00:00.5]} 77. a8=Q+ {[%clk 0:00:06.1]}
77... Kxa8 {[%clk 0:00:00.4]} 78. Ka6 {[%clk 0:00:05.7]} 1-0

[Event "Live Chess"]
[Site "Chess.com"]
[Date "2024.06.01"]
[Round "-"]
[White "RomanKifliuk"]
[Black "powerchs"]
[Result "1-0"]
[WhiteElo "2338"]
[BlackElo "1247"]
[TimeControl "300"]
[EndTime "11:57:28 PDT"]
[Termination "RomanKifliuk won by resignation"]

1. e4 {[%clk 0:04:58.6]} 1... c5 {[%clk 0:04:54.3]} 2. Nf3 {[%clk 0:04:56.8]}
2... d6 {[%clk 0:04:53.3]} 3. d4 {[%clk 0:04:55.6]} 3... cxd4 {[%clk 0:04:51.8]}
4. Nxd4 {[%clk 0:04:54.8]} 4... Nf6 {[%clk 0:04:50.9]} 5. Nc3 {[%clk 0:04:54.2]}
5... e5 {[%clk 0:04:49.7]} 6. Ndb5 {[%clk 0:04:50.6]} 6... a6 {[%clk 0:04:45.2]}
7. Na3 {[%clk 0:04:49]} 7... Be6 {[%clk 0:04:43.4]} 8. f4 {[%clk 0:04:45.7]}
8... Bg4 {[%clk 0:04:34.8]} 9. Be2 {[%clk 0:04:42.8]} 9... Bxe2 {[%clk 0:04:26]}
10. Qxe2 {[%clk 0:04:42.7]} 10... Be7 {[%clk 0:04:25.2]} 11. Be3 {[%clk
0:04:41.4]} 11... Nc6 {[%clk 0:04:22.9]} 12. O-O-O {[%clk 0:04:38.5]} 12... O-O
{[%clk 0:04:21]} 13. g4 {[%clk 0:04:29.8]} 13... Nd4 {[%clk 0:04:18.6]} 14. Bxd4
{[%clk 0:04:25.8]} 14... exd4 {[%clk 0:04:16.2]} 15. Rxd4 {[%clk 0:04:25.7]}
15... Qc7 {[%clk 0:04:12.5]} 16. g5 {[%clk 0:04:24.3]} 16... Nd7 {[%clk
0:04:04.6]} 17. Nd5 {[%clk 0:04:23.5]} 17... Qd8 {[%clk 0:04:02.6]} 18. Nxe7+
{[%clk 0:04:21.7]} 18... Qxe7 {[%clk 0:04:01.2]} 19. Rhd1 {[%clk 0:04:21.3]}
19... Rad8 {[%clk 0:03:58.2]} 20. Rxd6 {[%clk 0:04:19.7]} 20... Nc5 {[%clk
0:03:54.2]} 21. Rxd8 {[%clk 0:04:16.2]} 21... Rxd8 {[%clk 0:03:52.2]} 22. Rxd8+
{[%clk 0:04:15.4]} 22... Qxd8 {[%clk 0:03:51.1]} 23. e5 {[%clk 0:04:13.6]} 23...
Ne6 {[%clk 0:03:48.1]} 24. Qe3 {[%clk 0:04:10.1]} 24... Qd5 {[%clk 0:03:35.2]}
25. Nc4 {[%clk 0:04:05.9]} 25... b5 {[%clk 0:03:30.3]} 26. Nd6 {[%clk
0:04:02.9]} 26... Qh1+ {[%clk 0:03:26.7]} 27. Kd2 {[%clk 0:04:00.6]} 27... Qd5+
{[%clk 0:03:25.3]} 28. Kc3 {[%clk 0:03:52]} 28... b4+ {[%clk 0:03:17.7]} 29.
Kxb4 {[%clk 0:03:49.8]} 29... a5+ {[%clk 0:03:16.1]} 30. Kc3 {[%clk 0:03:44.5]}
30... Qc6+ {[%clk 0:03:09.3]} 31. Nc4 {[%clk 0:03:41]} 31... Nc5 {[%clk
0:02:59.4]} 32. b3 {[%clk 0:03:36.3]} 32... a4 {[%clk 0:02:50.6]} 33. f5 {[%clk
0:03:31.1]} 33... axb3 {[%clk 0:02:48.2]} 34. axb3 {[%clk 0:03:29.5]} 34... Ne4+
{[%clk 0:02:36.5]} 35. Kb2 {[%clk 0:03:27.4]} 1-0

[Event "Live Chess"]
[Site "Chess.com"]
[Date "2024.06.01"]
[Round "-"]
[White "Nazar-Makarchuk"]
[Black "GwaryTek"]
[Result "0-1"]
[WhiteElo "1599"]
[BlackElo "1909"]
[TimeControl "300"]
[EndTime "11:57:31 PDT"]
[Termination "GwaryTek won by resignation"]

1. e4 {[%clk 0:04:57.6]} 1... Nf6 {[%clk 0:04:59.4]} 2. Nc3 {[%clk 0:04:56.2]}
2... d5 {[%clk 0:04:57.6]} 3. exd5 {[%clk 0:04:55.2]} 3... Nxd5 {[%clk
0:04:56.3]} 4. Nxd5 {[%clk 0:04:54.8]} 4... Qxd5 {[%clk 0:04:45.6]} 5. Qf3
{[%clk 0:04:54]} 5... c6 {[%clk 0:04:42.4]} 6. Qxd5 {[%clk 0:04:52.6]} 6... cxd5
{[%clk 0:04:42.2]} 7. Nf3 {[%clk 0:04:51.9]} 7... Nc6 {[%clk 0:04:40.7]} 8. Bb5
{[%clk 0:04:51.3]} 8... f6 {[%clk 0:04:38.4]} 9. Nd4 {[%clk 0:04:50.4]} 9... Bd7
{[%clk 0:04:36.9]} 10. Nxc6 {[%clk 0:04:49.7]} 10... bxc6 {[%clk 0:04:34.4]} 11.
Be2 {[%clk 0:04:48.8]} 11... e5 {[%clk 0:04:33]} 12. O-O {[%clk 0:04:48.3]}
12... Bd6 {[%clk 0:04:31.5]} 13. d3 {[%clk 0:04:47.4]} 13... Kf7 {[%clk
0:04:30.3]} 14. Re1 {[%clk 0:04:46.7]} 14... Rab8 {[%clk 0:04:28.6]} 15. b3
{[%clk 0:04:45.3]} 15... Bb4 {[%clk 0:04:22.1]} 16. Rd1 {[%clk 0:04:42.7]} 16...
Bc3 {[%clk 0:04:05.1]} 17. Rb1 {[%clk 0:04:40.8]} 17... a5 {[%clk 0:04:03.3]}
18. Bd2 {[%clk 0:04:38.8]} 18... Bb4 {[%clk 0:03:53]} 19. Bxb4 {[%clk
0:04:37.3]} 19... axb4 {[%clk 0:03:51.2]} 20. Rdc1 {[%clk 0:04:36.3]} 20... Ra8
{[%clk 0:03:41.1]} 21. Ra1 {[%clk 0:04:32.9]} 21... Ra3 {[%clk 0:03:31.8]} 22.
c3 {[%clk 0:04:30.3]} 22... bxc3 {[%clk 0:03:29.4]} 23. Rxc3 {[%clk 0:04:28.5]}
23... Rha8 {[%clk 0:03:29.1]} 24. Rc2 {[%clk 0:04:26.3]} 24... Rxb3 {[%clk
0:03:17.7]} 25. a4 {[%clk 0:04:19.6]} 25... Ra5 {[%clk 0:03:10]} 26. Rca2 {[%clk
0:04:13.8]} 26... Ke7 {[%clk 0:03:03.5]} 27. Ra3 {[%clk 0:04:12.5]} 27... Rxa3
{[%clk 0:02:58.9]} 28. Rxa3 {[%clk 0:04:11.5]} 28... Kd6 {[%clk 0:02:58.8]} 29.
f3 {[%clk 0:04:09.9]} 29... Kc5 {[%clk 0:02:56.9]} 30. Kf2 {[%clk 0:04:08.9]}
30... Kb4 {[%clk 0:02:55.4]} 31. Ra1 {[%clk 0:04:04.7]} 31... Rxa4 {[%clk
0:02:40.2]} 32. Rxa4+ {[%clk 0:04:03.8]} 32... Kxa4 {[%clk 0:02:39]} 33. Ke3
{[%clk 0:04:03.3]} 33... Kb4 {[%clk 0:02:37.6]} 34. Kd2 {[%clk 0:04:02.8]} 34...
c5 {[%clk 0:02:28.4]} 35. g3 {[%clk 0:04:01.9]} 35... Bb5 {[%clk 0:02:26.8]} 36.
Bf1 {[%clk 0:03:54.9]} 36... c4 {[%clk 0:02:15.6]} 37. dxc4 {[%clk 0:03:53.4]}
37... Bxc4 {[%clk 0:02:14.2]} 38. Bg2 {[%clk 0:03:50.2]} 38... f5 {[%clk
0:02:09.8]} 39. h3 {[%clk 0:03:47.8]} 39... g5 {[%clk 0:02:07.4]} 40. Ke3 {[%clk
0:03:44]} 40... d4+ {[%clk 0:02:06.2]} 41. Kd2 {[%clk 0:03:42.7]} 41... Kc5
{[%clk 0:02:05.4]} 42. h4 {[%clk 0:03:35.9]} 42... h6 {[%clk 0:02:03.7]} 43.
hxg5 {[%clk 0:03:34.7]} 43... hxg5 {[%clk 0:02:03.6]} 44. f4 {[%clk 0:03:32.3]}
44... gxf4 {[%clk 0:02:01]} 45. gxf4 {[%clk 0:03:31.9]} 45... e4 {[%clk
0:02:00.1]} 46. Bh3 {[%clk 0:03:28.1]} 46... Be6 {[%clk 0:01:49]} 47. Ke1 {[%clk
0:03:18.5]} 47... Kb4 {[%clk 0:01:47.9]} 48. Kd2 {[%clk 0:03:18]} 48... Kb3
{[%clk 0:01:47.3]} 49. Bg2 {[%clk 0:03:17.2]} 49... Bc4 {[%clk 0:01:43.3]} 50.
Bh3 {[%clk 0:03:15.7]} 50... e3+ {[%clk 0:01:40.9]} 51. Ke1 {[%clk 0:03:13.1]}
51... Bd3 {[%clk 0:01:39.5]} 52. Bg2 {[%clk 0:03:04.6]} 52... Kc2 {[%clk
0:01:28.9]} 53. Bc6 {[%clk 0:02:57.7]} 53... Be4 {[%clk 0:01:24.8]} 54. Ba4+
{[%clk 0:02:55.6]} 54... Kc3 {[%clk 0:01:21.6]} 55. Bb5 {[%clk 0:02:47]} 55...
d3 {[%clk 0:01:16.8]} 56. Ba4 {[%clk 0:02:27.6]} 56... Bf3 {[%clk 0:01:08.7]}
57. Kf1 {[%clk 0:02:22.2]} 57... d2 {[%clk 0:01:02.2]} 58. Kg1 {[%clk
0:02:20.1]} 58... d1=Q+ {[%clk 0:01:01.3]} 59. Bxd1 {[%clk 0:02:18.6]} 59...
Bxd1 {[%clk 0:01:01.2]} 60. Kf1 {[%clk 0:02:17.7]} 60... Kd2 {[%clk 0:01:00]}
0-1

[Event "Live Chess"]
[Site "Chess.com"]
[Date "2024.06.01"]
[Round "-"]
[White "chessfiction"]
[Black "viktorskliarov"]
[Result "0-1"]
[WhiteElo "2417"]
[BlackElo "2653"]
[TimeControl "300"]
[EndTime "11:57:33 PDT"]
[Termination "viktorskliarov won by resignation"]

1. e4 {[%clk 0:04:54.6]} 1... c5 {[%clk 0:04:59]} 2. Nf3 {[%clk 0:04:51.5]} 2...
Nc6 {[%clk 0:04:58.4]} 3. Bb5 {[%clk 0:04:43.9]} 3... e6 {[%clk 0:04:57.2]} 4.
c3 {[%clk 0:04:42.5]} 4... Nge7 {[%clk 0:04:54.7]} 5. O-O {[%clk 0:04:40.6]}
5... a6 {[%clk 0:04:54.2]} 6. Be2 {[%clk 0:04:39]} 6... d5 {[%clk 0:04:51.4]} 7.
exd5 {[%clk 0:04:35.2]} 7... Nxd5 {[%clk 0:04:46.4]} 8. d4 {[%clk 0:04:35.1]}
8... cxd4 {[%clk 0:04:27.3]} 9. cxd4 {[%clk 0:04:33.4]} 9... Be7 {[%clk
0:04:14.3]} 10. Nc3 {[%clk 0:04:32.3]} 10... O-O {[%clk 0:04:12.9]} 11. Ne4
{[%clk 0:04:22.6]} 11... h6 {[%clk 0:03:45.7]} 12. a3 {[%clk 0:04:17.1]} 12...
b6 {[%clk 0:03:38.7]} 13. Qd3 {[%clk 0:03:47]} 13... Bb7 {[%clk 0:03:35.2]} 14.
Bd2 {[%clk 0:03:40.6]} 14... Rc8 {[%clk 0:03:33.1]} 15. Rac1 {[%clk 0:02:53.7]}
15... f5 {[%clk 0:02:56.2]} 16. Ng3 {[%clk 0:02:10.3]} 16... Qd6 {[%clk
0:02:52.1]} 17. Rfd1 {[%clk 0:01:51.3]} 17... Rfd8 {[%clk 0:02:26]} 18. Qb1
{[%clk 0:00:57.1]} 18... g5 {[%clk 0:01:54.6]} 19. h4 {[%clk 0:00:40.8]} 19...
g4 {[%clk 0:01:50.4]} 20. Nh2 {[%clk 0:00:37.3]} 20... Bxh4 {[%clk 0:01:45.2]}
21. Nxg4 {[%clk 0:00:32.8]} 21... Bxg3 {[%clk 0:01:34.6]} 22. Nxh6+ {[%clk
0:00:31.2]} 22... Kg7 {[%clk 0:01:26.7]} 23. fxg3 {[%clk 0:00:29]} 23... Nxd4
{[%clk 0:01:11.1]} 24. Bf1 {[%clk 0:00:19.1]} 24... Qxg3 {[%clk 0:01:07.1]} 25.
Bc3 {[%clk 0:00:08.4]} 25... Nxc3 {[%clk 0:01:03.3]} 26. Rxc3 {[%clk 0:00:04.6]}
26... Rxc3 {[%clk 0:01:01.8]} 0-1

[Event "Live Chess"]
[Site "Chess.com"]
[Date "2024.06.01"]
[Round "-"]
[White "MaksymYurii"]
[Black "PureDashingOctopus"]
[Result "0-1"]
[WhiteElo "934"]
[BlackElo "2261"]
[TimeControl "300"]
[EndTime "11:57:37 PDT"]
[Termination "PureDashingOctopus won by resignation"]

1. e4 {[%clk 0:04:55.9]} 1... c5 {[%clk 0:04:58]} 2. Nf3 {[%clk 0:04:54.8]} 2...
d6 {[%clk 0:04:56.3]} 3. Bc4 {[%clk 0:04:54]} 3... Nf6 {[%clk 0:04:53.2]} 4. Nc3
{[%clk 0:04:53.2]} 4... Nc6 {[%clk 0:04:51.3]} 5. d4 {[%clk 0:04:44]} 5... cxd4
{[%clk 0:04:49.9]} 6. Nxd4 {[%clk 0:04:43]} 6... e5 {[%clk 0:04:48.4]} 7. Nxc6
{[%clk 0:04:41.3]} 7... bxc6 {[%clk 0:04:48.3]} 8. Bg5 {[%clk 0:04:28]} 8... Be7
{[%clk 0:04:47.1]} 9. Bb3 {[%clk 0:04:01.5]} 9... O-O {[%clk 0:04:44.7]} 10.
Bxf6 {[%clk 0:03:52]} 10... Bxf6 {[%clk 0:04:42]} 11. Ne2 {[%clk 0:03:50.8]}
11... Be6 {[%clk 0:04:39.6]} 12. Ng3 {[%clk 0:03:42.3]} 12... d5 {[%clk
0:04:37.5]} 13. exd5 {[%clk 0:03:39.9]} 13... Bxd5 {[%clk 0:04:34.1]} 14. O-O
{[%clk 0:03:31.1]} 14... e4 {[%clk 0:04:29]} 15. f3 {[%clk 0:03:21.7]} 15...
exf3 {[%clk 0:04:24.6]} 16. Bxd5 {[%clk 0:03:11.4]} 16... Qxd5 {[%clk
0:04:18.6]} 17. Qxf3 {[%clk 0:03:06.5]} 17... Bxb2 {[%clk 0:04:15.8]} 18. Rab1
{[%clk 0:02:50.4]} 18... Bd4+ {[%clk 0:04:11.7]} 19. Kh1 {[%clk 0:02:48.4]}
19... Qxa2 {[%clk 0:04:11.3]} 20. Rbd1 {[%clk 0:02:42.3]} 20... Bf6 {[%clk
0:04:08.3]} 21. Nh5 {[%clk 0:02:34.8]} 21... Be5 {[%clk 0:03:57.8]} 22. Rde1
{[%clk 0:02:24.3]} 22... Bd4 {[%clk 0:03:27.1]} 23. Re4 {[%clk 0:02:17.7]} 23...
Rad8 {[%clk 0:03:18.5]} 24. Qg4 {[%clk 0:02:08.3]} 24... Qd5 {[%clk 0:02:51.9]}
25. Nxg7 {[%clk 0:01:57.7]} 25... Bxg7 {[%clk 0:02:48.7]} 26. Re3 {[%clk
0:01:48.6]} 26... Qd4 {[%clk 0:02:38.8]} 27. Rg3 {[%clk 0:01:44.7]} 27... Qxg4
{[%clk 0:02:37.2]} 28. Rxg4 {[%clk 0:01:43.3]} 28... Kh8 {[%clk 0:02:36.6]} 29.
c4 {[%clk 0:01:38]} 29... Rd4 {[%clk 0:02:29.9]} 30. Rh4 {[%clk 0:01:32.5]}
30... Rxh4 {[%clk 0:02:28.7]} 31. Rc1 {[%clk 0:01:29.2]} 31... Rd8 {[%clk
0:02:26.2]} 0-1

[Event "Live Chess"]
[Site "Chess.com"]
[Date "2024.06.01"]
[Round "-"]
[White "Cruiseylee78"]
[Black "Yegorych"]
[Result "1-0"]
[WhiteElo "1707"]
[BlackElo "1582"]
[TimeControl "300"]
[EndTime "11:57:38 PDT"]
[Termination "Cruiseylee78 won by checkmate"]

1. d4 {[%clk 0:04:59.4]} 1... Nf6 {[%clk 0:04:53.9]} 2. Bf4 {[%clk 0:04:58.4]}
2... g6 {[%clk 0:04:49.5]} 3. e3 {[%clk 0:04:53.6]} 3... Bg7 {[%clk 0:04:46.4]}
4. Bd3 {[%clk 0:04:45.3]} 4... d5 {[%clk 0:04:40.7]} 5. Nf3 {[%clk 0:04:39.2]}
5... O-O {[%clk 0:04:37.3]} 6. c3 {[%clk 0:04:30.8]} 6... Nbd7 {[%clk
0:04:29.1]} 7. Nbd2 {[%clk 0:04:29.6]} 7... c5 {[%clk 0:04:26.8]} 8. Qc2 {[%clk
0:04:28]} 8... c4 {[%clk 0:04:15.5]} 9. Be2 {[%clk 0:04:26.8]} 9... b5 {[%clk
0:03:59.5]} 10. h4 {[%clk 0:04:21.4]} 10... h5 {[%clk 0:03:55.8]} 11. Rg1 {[%clk
0:04:19]} 11... Ng4 {[%clk 0:03:51.1]} 12. Ne5 {[%clk 0:04:16.5]} 12... Ndxe5
{[%clk 0:03:48.7]} 13. Bxe5 {[%clk 0:04:16.4]} 13... Nxe5 {[%clk 0:03:44]} 14.
dxe5 {[%clk 0:04:15.5]} 14... Bxe5 {[%clk 0:03:37.6]} 15. g4 {[%clk 0:04:13.9]}
15... hxg4 {[%clk 0:03:23.7]} 16. Bxg4 {[%clk 0:04:12.1]} 16... Bxg4 {[%clk
0:03:22.2]} 17. Rxg4 {[%clk 0:04:12]} 17... Qd7 {[%clk 0:03:12.7]} 18. f3 {[%clk
0:04:03]} 18... Qd6 {[%clk 0:03:02.9]} 19. O-O-O {[%clk 0:04:01.5]} 19... b4
{[%clk 0:03:00.2]} 20. Rdg1 {[%clk 0:03:59.6]} 20... bxc3 {[%clk 0:02:56.7]} 21.
bxc3 {[%clk 0:03:59.5]} 21... Qa3+ {[%clk 0:02:53.9]} 22. Kd1 {[%clk 0:03:57.9]}
22... Qxc3 {[%clk 0:02:47]} 23. Rxg6+ {[%clk 0:03:55.6]} 23... Kh7 {[%clk
0:02:24.3]} 24. Rg7+ {[%clk 0:03:45.9]} 24... Kh8 {[%clk 0:01:59.6]} 25. Qh7#
{[%clk 0:03:45.8]} 1-0

[Event "Live Chess"]
[Site "Chess.com"]
[Date "2024.06.01"]
[Round "-"]
[White "Eva3337"]
[Black "Cimon"]
[Result "0-1"]
[WhiteElo "1143"]
[BlackElo "1825"]
[TimeControl "300"]
[EndTime "11:57:42 PDT"]
[Termination "Cimon won by resignation"]

1. e4 {[%clk 0:04:55.4]} 1... d6 {[%clk 0:04:58.2]} 2. Nf3 {[%clk 0:04:54.1]}
2... Nf6 {[%clk 0:04:55.9]} 3. Bd3 {[%clk 0:04:52.3]} 3... Bg4 {[%clk
0:04:49.8]} 4. h3 {[%clk 0:04:49.5]} 4... Bd7 {[%clk 0:04:46.3]} 5. c3 {[%clk
0:04:45.1]} 5... e5 {[%clk 0:04:44.4]} 6. O-O {[%clk 0:04:42.2]} 6... Bc6 {[%clk
0:04:41.2]} 7. Re1 {[%clk 0:04:40.6]} 7... Nbd7 {[%clk 0:04:39.9]} 8. Bc2 {[%clk
0:04:39.4]} 8... Be7 {[%clk 0:04:29.3]} 9. d4 {[%clk 0:04:32.6]} 9... b6 {[%clk
0:04:24.8]} 10. dxe5 {[%clk 0:04:27]} 10... dxe5 {[%clk 0:04:20.7]} 11. Bg5
{[%clk 0:04:21.3]} 11... h6 {[%clk 0:04:18.6]} 12. Bh4 {[%clk 0:04:19.6]} 12...
O-O {[%clk 0:04:13.6]} 13. Bg3 {[%clk 0:04:08.2]} 13... Bd6 {[%clk 0:04:07]} 14.
Nbd2 {[%clk 0:04:03]} 14... Qe7 {[%clk 0:04:02.4]} 15. Nc4 {[%clk 0:04:00.7]}
15... Rad8 {[%clk 0:03:53.1]} 16. Nxd6 {[%clk 0:03:57.4]} 16... cxd6 {[%clk
0:03:48.1]} 17. Ba4 {[%clk 0:03:51]} 17... b5 {[%clk 0:02:38.9]} 18. Bb3 {[%clk
0:03:46.2]} 18... Nb6 {[%clk 0:02:37.1]} 19. a4 {[%clk 0:03:41.2]} 19... bxa4
{[%clk 0:02:24.1]} 20. Bxa4 {[%clk 0:03:36.3]} 20... Nxa4 {[%clk 0:02:22.2]} 21.
Rxa4 {[%clk 0:03:34.5]} 21... Bxa4 {[%clk 0:02:20.7]} 22. Qxa4 {[%clk
0:03:32.5]} 22... Qd7 {[%clk 0:02:16.9]} 23. Rd1 {[%clk 0:03:25.1]} 23... Qxa4
{[%clk 0:02:14.3]} 0-1

[Event "Live Chess"]
[Site "Chess.com"]
[Date "2024.06.01"]
[Round "-"]
[White "chess5013"]
[Black "Bradfield133"]
[Result "1/2-1/2"]
[WhiteElo "1286"]
[BlackElo "1945"]
[TimeControl "300"]
[EndTime "11:57:57 PDT"]
[Termination "Game drawn by repetition"]

1. d4 {[%clk 0:04:58.1]} 1... d6 {[%clk 0:04:58.2]} 2. e4 {[%clk 0:04:56.5]}
2... g6 {[%clk 0:04:56.4]} 3. Nf3 {[%clk 0:04:54.7]} 3... Bg7 {[%clk 0:04:55.4]}
4. Bc4 {[%clk 0:04:50.5]} 4... Nd7 {[%clk 0:04:53.1]} 5. O-O {[%clk 0:04:49.4]}
5... c6 {[%clk 0:04:44.9]} 6. Be3 {[%clk 0:04:48.2]} 6... Ngf6 {[%clk
0:04:39.9]} 7. Nc3 {[%clk 0:04:45.3]} 7... O-O {[%clk 0:04:38.5]} 8. e5 {[%clk
0:04:41.2]} 8... dxe5 {[%clk 0:04:33.7]} 9. dxe5 {[%clk 0:04:39.1]} 9... Nd5
{[%clk 0:04:21]} 10. Nxd5 {[%clk 0:04:35.4]} 10... cxd5 {[%clk 0:04:19.4]} 11.
Bxd5 {[%clk 0:04:34.4]} 11... Nxe5 {[%clk 0:04:18.4]} 12. Nxe5 {[%clk
0:04:30.6]} 12... Bxe5 {[%clk 0:04:16.6]} 13. c3 {[%clk 0:04:24.1]} 13... Qc7
{[%clk 0:04:06.3]} 14. g3 {[%clk 0:04:20.7]} 14... Rd8 {[%clk 0:04:04]} 15. Qf3
{[%clk 0:04:15.3]} 15... e6 {[%clk 0:03:55.9]} 16. Bb3 {[%clk 0:04:07.9]} 16...
Bd7 {[%clk 0:03:44.6]} 17. Rad1 {[%clk 0:04:03.9]} 17... Bc6 {[%clk 0:03:43.1]}
18. Rxd8+ {[%clk 0:03:59.3]} 18... Rxd8 {[%clk 0:03:40.4]} 19. Qe2 {[%clk
0:03:56.1]} 19... b6 {[%clk 0:03:35.8]} 20. Rd1 {[%clk 0:03:45.8]} 20... Bb7
{[%clk 0:03:32.2]} 21. Rxd8+ {[%clk 0:03:27.7]} 21... Qxd8 {[%clk 0:03:30.6]}
22. Qd2 {[%clk 0:03:18.9]} 22... Qc7 {[%clk 0:03:20]} 23. Bf4 {[%clk 0:02:58.3]}
23... Bxf4 {[%clk 0:03:11.4]} 24. Qxf4 {[%clk 0:02:54.4]} 24... Qc6 {[%clk
0:03:05.7]} 25. Kf1 {[%clk 0:02:36.2]} 25... Qg2+ {[%clk 0:02:49.3]} 26. Ke2
{[%clk 0:02:33.9]} 26... Ba6+ {[%clk 0:02:42.5]} 27. Ke3 {[%clk 0:02:25.9]}
27... Qf1 {[%clk 0:02:13.5]} 28. Qb8+ {[%clk 0:02:21.1]} 28... Kg7 {[%clk
0:02:11.4]} 29. Qe5+ {[%clk 0:02:19.4]} 29... Kg8 {[%clk 0:01:37.8]} 30. Qb8+
{[%clk 0:02:17]} 30... Kg7 {[%clk 0:01:36.3]} 31. Qe5+ {[%clk 0:02:15.4]} 31...
Kg8 {[%clk 0:01:29.9]} 32. Qb8+ {[%clk 0:02:13.8]} 1/2-1/2